bitfinex/quotes_ETHUSD_20250222
["timestamp","ask_amount","ask_price","bid_price","bid_amount"]
[1740185233606,4.48941,2676.7,2676.2,9.10655]
[1740185233976,3.08523847,2676.6,2676.2,9.10655]
[1740185234274,3.08523847,2676.6,2676.3,3.7365]
[1740185234795,0.08523847,2676.6,2676.2,9.10663]
[1740185235099,0.08523847,2676.6,2676.4,3.73631]
[1740185235411,0.08523847,2676.6,2676.2,5.37]
[1740185235615,0.08523847,2676.6,2676.2,9.10653]
[1740185235817,0.08523847,2676.6,2676.5,3.73622]
[1740185236111,0.8221,2677.0,2676.2,5.37]
[1740185236311,0.8221,2677.0,2676.2,9.10658]
[1740185236620,0.08313974,2676.9,2676.5,3.73612]
[1740185236778,0.08313974,2676.9,2676.6,3.73599]
[1740185236979,0.08313974,2676.9,2676.5,9.1061]
[1740185237181,3.73546,2677.1,2676.6,3.73606]
[1740185237407,0.08313974,2676.8,2676.6,3.73606]
[1740185237719,0.08313974,2676.7,2676.6,3.73606]
[1740185238093,3.73546,2677.1,2676.6,3.73606]
[1740185238287,0.08313974,2676.7,2676.6,3.73606]
[1740185238604,3.73525,2677.2,2676.7,3.7359]
[1740185238910,0.08313974,2677.1,2676.8,3.7358]
[1740185239353,4.55721,2677.3,2676.8,3.7358]
[1740185239520,0.08313974,2677.0,2676.8,3.7358]
[1740185239727,3.73525,2677.2,2676.8,3.7358]
[1740185240012,0.0834817,2676.9,2676.7,5.37]
[1740185240217,3.73525,2677.2,2676.7,5.37]
[1740185240515,3.73539,2677.1,2676.7,5.37]
[1740185240723,3.8188717,2677.1,2676.7,5.37]
[1740185241587,3.8188717,2677.1,2676.7,9.10592]
[1740185242010,3.8188717,2677.1,2676.7,5.37]
[1740185242785,0.0834817,2677.1,2676.7,5.37]
[1740185242986,0.0834817,2677.1,2676.8,3.73575]
[1740185243187,0.0834817,2677.1,2676.7,9.10588]
[1740185243393,3.73526,2677.2,2676.7,9.10588]
[1740185243589,0.0834817,2677.0,2676.7,5.37]
[1740185243827,3.7355,2677.1,2676.7,5.37]
[1740185244024,0.0834817,2676.9,2676.7,5.37]
[1740185244339,4.6413817,2676.8,2676.7,5.37]
[1740185244824,3.73643,2676.4,2676.1,5.37]
[1740185245027,3.73664,2676.2,2676.1,5.37]
[1740185245197,3.73684,2676.1,2675.7,12.245]
[1740185245523,0.08383287,2676.0,2675.7,15.98233]
[1740185246107,4.5587,2676.3,2675.7,15.98233]
[1740185246315,0.08383287,2675.9,2675.7,15.98233]
[1740185246507,0.8221,2676.3,2675.7,15.98233]
[1740185246508,3.73671,2676.2,2675.7,15.98233]
[1740185246709,3.73671,2676.2,2675.8,3.7372]
[1740185246922,0.08383287,2676.1,2675.7,15.98233]
[1740185247434,0.08383287,2676.1,2676.0,4.48722]
[1740185247644,0.8221,2676.6,2676.2,3.73663]
[1740185247939,0.08352787,2676.5,2676.2,3.73663]
[1740185248506,0.08352787,2676.5,2676.2,9.10663]
[1740185248704,0.08352787,2676.5,2676.3,3.73643]
[1740185248930,0.08352787,2676.5,2676.3,3.7364]
[1740185249338,4.55796,2676.8,2676.3,3.7364]
[1740185249539,0.08352787,2676.4,2676.3,3.7364]
[1740185249834,4.55796,2676.8,2676.3,3.7364]
[1740185250041,0.08365727,2676.4,2676.3,3.7364]
[1740185250234,4.55796,2676.8,2676.3,3.7364]
[1740185250396,0.08365727,2676.4,2676.3,3.7364]
[1740185250601,0.8221,2676.8,2676.3,3.7364]
[1740185250803,0.08365727,2676.4,2676.3,7.4728]
[1740185251003,4.55791,2676.8,2676.3,3.7364]
[1740185251203,0.08365727,2676.4,2676.3,3.7364]
[1740185251424,4.55791,2676.8,2676.3,3.7364]
[1740185251629,0.08365727,2676.4,2676.3,3.7364]
[1740185251906,4.55791,2676.8,2676.4,3.73636]
[1740185252842,3.7361,2676.6,2676.2,9.10664]
[1740185253006,3.73643,2676.4,2676.2,5.37]
[1740185253203,3.73631,2676.5,2676.2,5.37]
[1740185253408,3.73636,2676.4,2676.2,5.37]
[1740185253621,3.73622,2676.5,2676.2,5.37]
[1740185254860,6.73596,2676.7,2676.2,9.10653]
[1740185255533,3.7361,2676.6,2676.2,9.10653]
[1740185255736,6.73596,2676.7,2676.2,9.10653]
[1740185256147,6.73596,2676.7,2676.3,3.73643]
[1740185256445,3.7362,2676.6,2676.2,5.37]
[1740185257444,6.73596,2676.7,2676.2,5.37]
[1740185257747,3.73623,2676.5,2676.2,5.37]
[1740185258345,3.73609,2676.6,2676.2,5.37]
[1740185258650,3.73609,2676.6,2676.2,9.10662]
[1740185258849,3.0,2676.7,2676.4,3.73635]
[1740185259850,3.0,2676.7,2676.5,3.73619]
[1740185260156,3.73562,2677.0,2676.4,0.8091]
[1740185260462,0.7566,2678.7,2678.0,0.1]
[1740185260611,3.73385,2678.2,2677.8,0.1]
[1740185260947,0.7566,2678.1,2677.8,0.1]
[1740185261150,3.73422,2678.0,2677.6,0.1]
[1740185261353,4.49059,2678.1,2677.6,0.1]
[1740185261665,0.7566,2678.1,2677.6,0.1]
[1740185261920,0.7566,2678.4,2678.0,0.1]
[1740185262077,3.73308,2678.8,2678.0,3.83412]
[1740185262229,0.7566,2678.7,2678.0,7.56815]
[1740185262425,0.7566,2678.7,2678.6,0.1]
[1740185262426,0.08108447,2678.7,2678.6,0.1]
[1740185262671,0.7566,2679.1,2678.8,0.1]
[1740185262963,3.73222,2679.4,2679.1,0.1]
[1740185262964,0.7566,2679.4,2679.1,0.1]
[1740185263133,3.73216,2679.5,2679.1,0.1]
[1740185263565,0.7566,2679.7,2679.5,0.1]
[1740185263766,4.488,2680.0,2679.5,0.1]
[1740185264062,3.7323,2679.4,2679.1,5.47]
[1740185264226,3.73195,2679.6,2679.1,0.1]
[1740185264428,3.73195,2679.6,2678.8,9.8951]
[1740185264429,3.73165,2679.8,2679.4,0.1]
[1740185264654,3.7319,2679.6,2679.4,0.1]
[1740185265165,3.73203,2679.5,2679.4,0.1]
[1740185265933,3.73104,2680.3,2679.4,0.1]
[1740185265934,5.32,2681.1,2679.9,0.1]
[1740185266243,3.73074,2680.5,2680.3,0.1]
[1740185266432,3.73078,2680.4,2680.3,0.1]
[1740185266766,3.73227,2679.4,2678.9,4.48898437]
[1740185266968,0.7566,2680.1,2679.2,0.8091]
[1740185267147,3.73102,2680.3,2679.5,3.73203]
[1740185267327,3.73088,2680.4,2679.7,3.73171]
[1740185267527,3.73076,2680.5,2679.7,3.73171]
[1740185267768,3.7313,2680.1,2679.6,5.29808437]
[1740185267933,3.73148,2679.9,2679.6,5.29808437]
[1740185268135,3.73176,2679.7,2679.6,5.29808437]
[1740185268462,3.73176,2679.7,2679.6,4.48898437]
[1740185268692,3.73148,2679.9,2679.6,4.48898437]
[1740185268967,3.73168,2679.8,2679.6,4.48898437]
[1740185269142,3.73176,2679.7,2679.6,4.48898437]
[1740185270389,3.73203,2679.5,2679.4,4.48898437]
[1740185272180,7.46365,2679.7,2679.0,1.0614]
[1740185272181,3.73245,2679.2,2679.1,4.48898437]
[1740185274894,3.73186,2679.7,2679.1,4.48898437]
[1740185275058,3.73212,2679.5,2679.1,4.48898437]
[1740185275254,0.07676679,2679.4,2679.1,4.48898437]
[1740185276085,3.80894679,2679.4,2679.1,4.48898437]
[1740185276283,0.07676679,2679.4,2679.1,4.48898437]
[1740185277291,3.80896679,2679.4,2679.1,4.48898437]
[1740185278311,0.07676679,2679.4,2679.3,4.49671]
[1740185278535,0.7824,2680.3,2679.3,1.66296944]
[1740185278698,4.51294,2680.6,2679.7,3.73174]
[1740185278906,3.73115,2680.2,2679.8,4.48898437]
[1740185279237,3.73065,2680.5,2680.1,0.7644]
[1740185279414,3.0,2680.4,2680.2,4.48898437]
[1740185279581,3.7304,2680.7,2680.2,4.48898437]
[1740185279780,5.248873,2681.7,2680.2,4.48898437]
[1740185279781,0.7824,2681.5,2680.2,4.48898437]
[1740185279977,3.73051,2680.6,2680.3,4.48898437]
[1740185280213,3.73074,2680.5,2680.3,4.48898437]
[1740185280417,3.73045,2680.7,2680.3,4.48898437]
[1740185280619,3.73051,2680.6,2680.3,4.48898437]
[1740185280916,3.73045,2680.7,2680.3,4.48898437]
[1740185281115,3.73017,2680.9,2680.3,4.48898437]
[1740185281414,3.72929,2681.5,2680.5,0.7644]
[1740185281619,3.72929,2681.5,2680.8,0.7644]
[1740185281620,3.72942,2681.4,2680.8,0.7644]
[1740185281798,3.72955,2681.3,2680.8,0.7644]
[1740185282288,3.72985,2681.1,2680.8,0.7644]
[1740185282683,3.72981,2681.1,2680.9,13.28898437]
[1740185282906,3.72995,2681.0,2680.9,13.28898437]
[1740185283649,3.72976,2681.2,2680.9,13.28898437]
[1740185283847,3.72948,2681.4,2681.0,0.7644]
[1740185284140,3.72981,2681.1,2681.0,0.7644]
[1740185284537,5.61e-06,2682.1,2681.0,6.48271776]
[1740185284734,3.72908,2681.7,2681.2,0.7644]
[1740185284935,5.61e-06,2682.1,2681.2,0.7644]
[1740185285141,7.45868,2681.5,2681.2,0.7644]
[1740185285312,7.45868,2681.5,2681.3,4.48898437]
[1740185285636,0.07660859,2681.4,2681.3,4.48898437]
[1740185286037,3.72939,2681.4,2681.3,4.48898437]
[1740185286239,3.80599859,2681.4,2681.3,4.48898437]
[1740185290662,0.07660859,2681.4,2681.3,4.48898437]
[1740185291035,3.80599859,2681.4,2681.3,4.48898437]
[1740185292260,6.80599859,2681.4,2681.3,4.48898437]
[1740185294253,3.73022,2680.8,2680.7,4.37e-06]
[1740185294659,3.8072252,2680.8,2680.7,4.37e-06]
[1740185297335,0.0770052,2680.8,2680.7,0.78720437]
[1740185297537,3.7301,2680.9,2680.7,0.78720437]
[1740185297869,3.80662565,2680.8,2680.7,4.37e-06]
[1740185298071,0.07640565,2680.8,2680.7,4.37e-06]
[1740185298963,3.80662565,2680.8,2680.7,4.37e-06]
[1740185299537,0.07640565,2680.8,2680.7,4.37e-06]
[1740185301367,0.07650712,2680.8,2680.7,4.37e-06]
[1740185302273,3.73011,2680.9,2680.7,4.37e-06]
[1740185302638,0.07661781,2680.8,2680.7,4.37e-06]
[1740185303790,3.80683781,2680.8,2680.7,4.37e-06]
[1740185304001,3.80683781,2680.8,2680.0,3.73125]
[1740185304002,3.73078,2680.4,2680.0,4.37e-06]
[1740185304405,3.7312,2680.1,2680.0,4.37e-06]
[1740185305101,3.80771634,2680.1,2680.0,4.37e-06]
[1740185305483,0.07651634,2680.1,2680.0,13.31854437]
[1740185305884,3.73037,2680.7,2680.2,3.73102]
[1740185306268,0.07618418,2680.6,2680.2,3.73102]
[1740185306453,0.07618418,2680.6,2680.5,0.7872]
[1740185306653,3.73006,2681.0,2680.5,4.51776]
[1740185306953,3.73025,2680.8,2680.6,4.37e-06]
[1740185307586,3.73,2681.0,2680.6,4.37e-06]
[1740185307760,3.72981,2681.1,2680.6,3.73049437]
[1740185308100,3.72995,2681.0,2680.6,4.37e-06]
[1740185308263,3.72975,2681.2,2680.6,4.37e-06]
[1740185308449,3.72933,2681.5,2680.8,3.7301]
[1740185308655,3.72933,2681.5,2680.9,0.7872]
[1740185308884,3.80286883,2681.4,2680.9,0.7872]
[1740185309586,0.07339883,2681.4,2681.3,3.72953]
[1740185309786,0.07339883,2681.4,2681.3,4.80373437]
[1740185309989,3.72877,2681.9,2681.3,1.92754381]
[1740185310152,3.72899,2681.7,2681.4,4.37e-06]
[1740185310756,3.72877,2681.9,2681.4,4.37e-06]
[1740185310951,3.72850561,2682.1,2681.4,4.37e-06]
[1740185311156,3.72858,2682.0,2681.5,3.7292]
[1740185311589,3.72850561,2682.1,2681.4,4.37e-06]
[1740185311590,3.7287,2681.9,2681.4,4.37e-06]
[1740185311794,3.72898,2681.7,2681.4,4.37e-06]
[1740185313373,3.72925,2681.5,2681.4,4.37e-06]
[1740185316409,3.72967,2681.2,2681.1,4.37e-06]
[1740185322207,4.51565,2681.0,2680.9,4.37e-06]
[1740185322495,3.73078,2680.4,2680.3,4.37e-06]
[1740185323267,3.73066,2680.5,2680.3,4.37e-06]
[1740185323875,0.07434891,2680.4,2680.3,4.37e-06]
[1740185327505,0.07434891,2680.4,2680.3,3.78315418]
[1740185327807,7.46026,2680.9,2680.4,3.73077]
[1740185327995,3.7301,2680.9,2680.5,4.37e-06]
[1740185328192,7.4603,2680.9,2680.5,4.37e-06]
[1740185328395,3.7301,2680.9,2680.5,4.37e-06]
[1740185328600,7.4603,2680.9,2680.5,4.37e-06]
[1740185328800,3.73023,2680.8,2680.5,4.37e-06]
[1740185329915,3.73009,2680.9,2680.5,4.37e-06]
[1740185330383,3.73023,2680.8,2680.5,4.37e-06]
[1740185330714,3.73017,2680.9,2680.5,4.37e-06]
[1740185330878,0.7592,2681.5,2680.6,0.75340437]
[1740185331081,5.61e-06,2682.1,2681.1,0.7534]
[1740185331082,3.729,2681.7,2681.1,0.7534]
[1740185331316,3.72924,2681.6,2681.1,0.7534]
[1740185331481,6.72924,2681.6,2681.1,0.7534]
[1740185331912,3.72932,2681.5,2681.1,0.7534]
[1740185332079,7.45866,2681.5,2681.2,4.37e-06]
[1740185332275,3.72932,2681.5,2681.2,4.37e-06]
[1740185332481,7.45866,2681.5,2681.2,4.37e-06]
[1740185332815,3.72901,2681.7,2681.2,3.72955437]
[1740185333013,7.45806,2681.7,2681.2,3.72955437]
[1740185333316,3.72901,2681.7,2681.2,4.37e-06]
[1740185333814,7.45809,2681.7,2681.2,4.37e-06]
[1740185334010,3.72849561,2682.1,2681.7,0.7534]
[1740185334212,3.72862,2682.0,2681.8,4.37e-06]
[1740185334414,3.72855561,2682.1,2681.8,4.37e-06]
[1740185334717,5.61e-06,2682.1,2681.9,3.72869]
[1740185334912,5.61e-06,2682.1,2682.0,4.37e-06]
[1740185335680,0.06967458,2682.1,2682.0,4.37e-06]
[1740185335884,0.06967458,2682.1,2682.0,3.72856437]
[1740185336081,5.61e-06,2682.1,2682.0,4.89943181]
[1740185336414,5.61e-06,2682.1,2682.0,5.18343181]
[1740185336783,5.61e-06,2682.1,2682.0,13.98343181]
[1740185337895,5.61e-06,2682.1,2682.0,16.98343181]
[1740185342305,5.61e-06,2682.1,2682.0,17.72796401]
[1740185342700,5.61e-06,2682.1,2682.0,13.71540401]
[1740185342900,5.61e-06,2682.1,2682.0,14.72796401]
[1740185343706,0.07013116,2682.1,2682.0,14.72796401]
[1740185343917,5.61e-06,2682.1,2682.0,14.72796401]
[1740185345029,5.61e-06,2682.1,2682.0,10.99940401]
[1740185345392,5.61e-06,2682.1,2682.0,9.54453657]
[1740185345603,5.61e-06,2682.1,2682.0,8.80000437]
[1740185345819,3.7984774,2682.1,2682.0,8.80000437]
[1740185346650,0.0700574,2682.1,2682.0,8.80000437]
[1740185346929,3.7984774,2682.1,2682.0,4.37e-06]
[1740185347298,4.6217774,2682.1,2682.0,4.37e-06]
[1740185348699,7.6217774,2682.1,2682.0,4.37e-06]
[1740185349294,3.72953,2681.3,2681.2,4.37e-06]
[1740185349796,3.79775572,2681.3,2681.2,4.37e-06]
[1740185352103,0.06822572,2681.3,2681.2,4.37e-06]
[1740185352617,3.79775572,2681.3,2681.2,4.37e-06]
[1740185352818,0.06822572,2681.3,2681.2,4.37e-06]
[1740185353134,0.06822572,2681.3,2681.2,5.37777481]
[1740185353536,4.51556,2682.0,2681.3,3.72949]
[1740185353737,3.72896,2681.8,2681.4,4.37e-06]
[1740185354109,0.06775515,2681.7,2681.4,4.37e-06]
[1740185354307,5.61e-06,2682.1,2681.4,4.37e-06]
[1740185354521,5.61e-06,2682.1,2681.8,3.72882]
[1740185354852,5.61e-06,2682.1,2681.9,4.37e-06]
[1740185355023,5.61e-06,2682.1,2682.0,3.72856]
[1740185355340,5.61e-06,2682.1,2681.9,4.37e-06]
[1740185355639,5.61e-06,2682.1,2682.0,4.37e-06]
[1740185357139,5.61e-06,2682.1,2682.0,3.78075819]
[1740185357439,5.61e-06,2682.1,2682.0,1.63093619]
[1740185358009,5.61e-06,2682.1,2682.0,5.35949619]
[1740185358205,5.61e-06,2682.1,2682.0,1.63093619]
[1740185359823,4.52032561,2682.1,2682.0,4.37e-06]
[1740185360009,0.0688955,2682.1,2682.0,4.37e-06]
[1740185360414,0.0688955,2682.1,2682.0,4.54196437]
[1740185360615,5.61e-06,2682.1,2682.0,4.54196437]
[1740185360811,0.06912608,2682.1,2682.0,4.54196437]
[1740185361016,5.61e-06,2682.1,2682.0,6.24902881]
[1740185361625,5.61e-06,2682.1,2682.0,18.04902881]
[1740185363421,5.61e-06,2682.1,2682.0,11.32046881]
[1740185363622,5.61e-06,2682.1,2682.0,9.61340437]
[1740185363845,0.06955025,2682.1,2682.0,9.61340437]
[1740185364049,0.06955025,2682.1,2682.0,8.80000437]
[1740185365344,5.61e-06,2682.1,2682.0,8.80000437]
[1740185365750,0.06955025,2682.1,2682.0,8.80000437]
[1740185366610,0.06955025,2682.1,2682.0,14.58362581]
[1740185366810,5.61e-06,2682.1,2682.0,14.58362581]
[1740185369355,5.61e-06,2682.1,2682.0,17.58362581]
[1740185376162,5.61e-06,2682.1,2682.0,17.86562581]
[1740185378988,1e-08,2682.3,2682.2,3.72828]
[1740185379167,1e-08,2682.3,2682.2,6.26050958]
[1740185382035,1e-08,2682.3,2682.2,18.64491388]
[1740185382240,0.795,2683.3,2682.9,3.72717]
[1740185382480,0.06763532,2683.2,2683.0,12.52709437]
[1740185382670,0.795,2683.3,2683.0,14.15252081]
[1740185382977,0.06764454,2683.1,2683.0,14.15252081]
[1740185383162,0.795,2683.3,2683.0,10.42543081]
[1740185383334,3.72696,2683.2,2683.0,10.42543081]
[1740185383534,3.79455454,2683.2,2683.0,8.80000437]
[1740185383738,0.06764454,2683.2,2683.0,8.80000437]
[1740185383938,0.795,2683.3,2683.0,8.80000437]
[1740185384178,0.06789369,2683.1,2683.0,8.80000437]
[1740185384548,0.795,2683.3,2683.0,8.80000437]
[1740185384753,0.06789369,2683.1,2683.0,8.80000437]
[1740185384958,0.795,2683.3,2683.0,8.80000437]
[1740185385165,0.06789369,2683.1,2683.0,12.52715437]
[1740185385366,0.795,2683.3,2683.0,10.08081981]
[1740185385566,0.06789369,2683.1,2683.0,10.08081981]
[1740185385842,0.795,2683.3,2683.0,10.08081981]
[1740185386045,0.06789369,2683.2,2683.0,10.08081981]
[1740185386246,0.795,2683.3,2683.0,10.08081981]
[1740185386448,0.06789369,2683.2,2683.0,10.08081981]
[1740185386763,0.795,2683.3,2683.0,13.80796981]
[1740185386968,0.06789369,2683.1,2683.0,13.80796981]
[1740185387167,0.795,2683.3,2683.0,13.80796981]
[1740185387390,0.06789369,2683.1,2683.0,10.08081981]
[1740185387548,0.795,2683.3,2683.0,10.08081981]
[1740185387747,0.06789369,2683.1,2683.0,10.08081981]
[1740185388245,4.52176,2683.3,2683.0,10.08081981]
[1740185388475,0.06789369,2683.2,2683.0,10.08081981]
[1740185388678,0.795,2683.3,2683.0,10.08081981]
[1740185388873,0.06789369,2683.1,2683.0,10.08081981]
[1740185389077,0.795,2683.3,2683.0,13.80798981]
[1740185389276,0.06789369,2683.1,2683.0,13.80798981]
[1740185389482,0.795,2683.3,2683.0,10.08081981]
[1740185389682,0.06795827,2683.1,2683.0,8.80000437]
[1740185389886,0.795,2683.3,2683.0,12.52717437]
[1740185390086,0.06795827,2683.1,2683.0,12.52717437]
[1740185390286,0.795,2683.3,2683.0,12.52717437]
[1740185390487,0.06793982,2683.1,2683.0,12.52717437]
[1740185390681,0.795,2683.3,2683.0,12.52717437]
[1740185390888,0.06793982,2683.1,2683.0,8.80000437]
[1740185391191,0.795,2683.3,2683.0,8.80000437]
[1740185391490,0.06793982,2683.2,2683.0,12.52709437]
[1740185391654,0.795,2683.3,2683.0,12.52709437]
[1740185391855,0.06793982,2683.2,2683.0,12.52709437]
[1740185392073,0.795,2683.3,2683.0,12.52706437]
[1740185392351,0.795,2683.3,2683.0,9.63475823]
[1740185392560,0.795,2683.3,2683.0,8.80000437]
[1740185392758,4.52182,2683.3,2683.0,8.80000437]
[1740185394095,4.52182,2683.3,2683.1,8.80000437]
[1740185395190,8.24866,2683.3,2683.1,8.80000437]
[1740185395390,3.72689,2683.2,2683.1,8.80000437]
[1740185395962,4.52182,2683.3,2683.1,8.80000437]
[1740185396164,3.72689,2683.2,2683.1,8.80000437]
[1740185398895,3.79493132,2683.2,2683.1,8.80000437]
[1740185399883,3.79493132,2683.2,2683.1,4.37e-06]
[1740185400493,0.06804132,2683.2,2683.1,4.37e-06]
[1740185400667,0.795,2683.3,2683.1,4.37e-06]
[1740185400863,0.06794905,2683.2,2683.1,4.37e-06]
[1740185401068,3.72689,2683.2,2683.1,4.37e-06]
[1740185401270,3.79483905,2683.2,2683.1,4.37e-06]
[1740185416118,7.61393905,2683.2,2683.1,4.37e-06]
[1740185417610,4.61393905,2683.2,2683.1,4.37e-06]
[1740185427632,7.61393905,2683.2,2683.1,4.37e-06]
[1740185427799,0.06794905,2683.2,2683.1,4.37e-06]
[1740185428118,3.72689,2683.2,2683.1,4.37e-06]
[1740185428427,0.0676261,2683.2,2683.1,4.37e-06]
[1740185428825,3.72689,2683.2,2683.1,4.37e-06]
[1740185428995,3.79446073,2683.2,2683.1,4.37e-06]
[1740185430331,0.06757073,2683.2,2683.1,4.37e-06]
[1740185430535,3.72689,2683.2,2683.1,4.37e-06]
[1740185430701,3.79446073,2683.2,2683.1,4.37e-06]
[1740185432339,3.83542699,2683.2,2683.1,4.37e-06]
[1740185432831,4.64762699,2683.2,2683.1,4.37e-06]
[1740185433636,3.83542699,2683.2,2683.1,4.37e-06]
[1740185433801,0.10853699,2683.2,2683.1,4.37e-06]
[1740185434000,3.83542699,2683.2,2683.1,4.37e-06]
[1740185434211,3.72689,2683.2,2683.1,4.37e-06]
[1740185434414,3.83564847,2683.2,2683.1,4.37e-06]
[1740185434664,0.10875847,2683.2,2683.1,0.75620437]
[1740185434813,3.83564847,2683.2,2683.1,0.75620437]
[1740185435029,3.72689,2683.2,2683.1,0.75620437]
[1740185435212,3.83564847,2683.2,2683.1,0.75620437]
[1740185436037,3.83564847,2683.2,2683.1,4.37e-06]
[1740185437508,0.10875847,2683.2,2683.1,4.37e-06]
[1740185437845,3.72689,2683.2,2683.1,4.37e-06]
[1740185438050,3.83564847,2683.2,2683.1,4.37e-06]
[1740185439139,0.10875847,2683.2,2683.1,4.37e-06]
[1740185439338,0.005,2683.4,2683.1,3.72698437]
[1740185439530,0.10875847,2683.2,2683.1,4.37e-06]
[1740185439707,3.72687,2683.3,2683.1,4.37e-06]
[1740185439907,0.10875847,2683.2,2683.1,4.37e-06]
[1740185440138,3.72687,2683.3,2683.1,4.37e-06]
[1740185440442,0.10875847,2683.2,2683.1,4.37e-06]
[1740185440821,3.72681,2683.3,2683.1,4.37e-06]
[1740185441020,0.10875847,2683.2,2683.1,4.37e-06]
[1740185441422,3.72681,2683.3,2683.1,4.37e-06]
[1740185441624,0.10875847,2683.2,2683.1,4.37e-06]
[1740185441941,3.72681,2683.3,2683.1,4.37e-06]
[1740185442113,0.10875847,2683.2,2683.1,4.37e-06]
[1740185442317,3.72681,2683.3,2683.1,4.37e-06]
[1740185442510,0.10875847,2683.2,2683.1,4.37e-06]
[1740185442712,3.72681,2683.3,2683.1,4.37e-06]
[1740185443031,0.10875847,2683.2,2683.1,4.37e-06]
[1740185443446,7.45366,2683.3,2683.1,4.37e-06]
[1740185443743,0.10875847,2683.2,2683.1,4.37e-06]
[1740185443911,7.45368,2683.3,2683.1,4.37e-06]
[1740185444109,0.10876768,2683.2,2683.1,4.37e-06]
[1740185444363,7.45368,2683.3,2683.1,4.37e-06]
[1740185444543,0.10876768,2683.2,2683.1,4.37e-06]
[1740185444717,7.45366,2683.3,2683.1,4.37e-06]
[1740185444911,0.10876768,2683.2,2683.1,4.37e-06]
[1740185445248,0.005,2683.4,2683.2,3.72684]
[1740185445444,0.005,2683.4,2683.3,0.37268444]
[1740185445656,3.73161,2683.4,2683.1,4.37e-06]
[1740185449351,0.005,2683.4,2683.1,4.37e-06]
[1740185449850,3.73165,2683.4,2683.1,4.37e-06]
[1740185451552,3.72676,2683.3,2683.1,4.37e-06]
[1740185451757,3.72689,2683.2,2683.1,4.37e-06]
[1740185451916,4.49889,2683.2,2683.1,4.37e-06]
[1740185455239,0.005,2683.4,2683.1,0.80870437]
[1740185455440,3.73161,2683.4,2683.1,1.76957481]
[1740185455642,7.45835,2683.4,2683.1,1.76957481]
[1740185455819,3.73161,2683.4,2683.1,0.80870437]
[1740185456256,7.45833,2683.4,2683.1,0.80870437]
[1740185456553,3.73161,2683.4,2683.1,0.80870437]
[1740185456853,3.72689,2683.2,2683.1,4.37e-06]
[1740185457180,3.73163,2683.4,2683.1,4.37e-06]
[1740185457324,0.005,2683.4,2683.1,0.96070481]
[1740185457522,3.73162,2683.4,2683.1,4.37e-06]
[1740185457723,5.97962,2683.4,2683.1,4.37e-06]
[1740185458357,3.72678,2683.3,2683.1,4.37e-06]
[1740185458863,0.10860157,2683.2,2683.1,4.37e-06]
[1740185459042,0.10860157,2683.2,2683.1,0.96070481]
[1740185459250,5.97962,2683.4,2683.1,0.96070481]
[1740185459424,0.10860157,2683.2,2683.1,4.37e-06]
[1740185459625,3.72676,2683.3,2683.1,4.37e-06]
[1740185459931,0.10860157,2683.2,2683.1,4.37e-06]
[1740185460152,3.72676,2683.3,2683.1,4.37e-06]
[1740185460354,0.10860157,2683.2,2683.1,4.37e-06]
[1740185460667,3.72676,2683.3,2683.1,4.37e-06]
[1740185460830,0.10860157,2683.2,2683.1,4.37e-06]
[1740185461228,5.97963,2683.4,2683.1,4.37e-06]
[1740185461453,0.10860157,2683.2,2683.1,4.37e-06]
[1740185461653,5.97963,2683.4,2683.1,1.33343481]
[1740185461850,0.10860157,2683.2,2683.1,4.37e-06]
[1740185462054,0.005,2683.4,2683.1,4.37e-06]
[1740185462359,0.10874921,2683.3,2683.1,4.37e-06]
[1740185462926,0.10874921,2683.3,2683.2,0.807]
[1740185464562,3.83557921,2683.3,2683.1,4.37e-06]
[1740185464763,3.72689,2683.2,2683.1,4.37e-06]
[1740185465065,3.8357592,2683.2,2683.1,4.37e-06]
[1740185465669,6.0837592,2683.2,2683.1,4.37e-06]
[1740185466431,2.3568692,2683.2,2683.1,4.37e-06]
[1740185466631,2.3568692,2683.2,2683.1,0.80700437]
[1740185466831,0.1088692,2683.2,2683.1,0.80700437]
[1740185467136,3.0,2683.3,2683.1,0.80700437]
[1740185467341,0.10891531,2683.2,2683.1,0.80700437]
[1740185467555,6.72685,2683.3,2683.1,0.80700437]
[1740185467769,0.10891531,2683.2,2683.1,0.80700437]
[1740185468175,6.72685,2683.3,2683.1,4.37e-06]
[1740185468345,0.10891531,2683.2,2683.1,4.37e-06]
[1740185468545,6.72685,2683.3,2683.1,4.37e-06]
[1740185468878,0.10891531,2683.2,2683.1,4.37e-06]
[1740185469170,6.72685,2683.3,2683.1,4.37e-06]
[1740185469571,0.10891531,2683.2,2683.1,4.37e-06]
[1740185469867,6.72685,2683.3,2683.1,4.37e-06]
[1740185470036,0.10891531,2683.2,2683.1,4.37e-06]
[1740185470371,6.72685,2683.3,2683.1,4.37e-06]
[1740185470665,0.10891531,2683.2,2683.1,4.37e-06]
[1740185470963,6.72685,2683.3,2683.1,4.37e-06]
[1740185471157,0.10891531,2683.2,2683.1,4.37e-06]
[1740185471345,6.72685,2683.3,2683.1,4.37e-06]
[1740185471547,0.10891531,2683.2,2683.1,4.37e-06]
[1740185471749,6.72685,2683.3,2683.1,4.37e-06]
[1740185471947,0.10891531,2683.2,2683.1,4.37e-06]
[1740185472147,6.72685,2683.3,2683.1,4.37e-06]
[1740185472471,3.83580531,2683.2,2683.1,4.37e-06]
[1740185474575,0.10891531,2683.2,2683.1,4.37e-06]
[1740185474774,3.0,2683.3,2683.1,4.37e-06]
[1740185475075,0.10891531,2683.2,2683.1,4.37e-06]
[1740185475372,3.0,2683.3,2683.1,4.37e-06]
[1740185475538,0.10891531,2683.2,2683.1,4.37e-06]
[1740185475741,3.0,2683.3,2683.1,4.37e-06]
[1740185475937,0.10891531,2683.2,2683.1,4.37e-06]
[1740185476173,3.0,2683.3,2683.1,4.37e-06]
[1740185476473,0.10891531,2683.2,2683.1,4.37e-06]
[1740185476769,0.005,2683.4,2683.1,4.37e-06]
[1740185476961,0.10891531,2683.3,2683.1,4.37e-06]
[1740185478243,3.83570531,2683.3,2683.1,4.37e-06]
[1740185478447,0.10891531,2683.3,2683.1,4.37e-06]
[1740185482043,2.35691531,2683.3,2683.1,4.37e-06]
[1740185483073,0.10891531,2683.3,2683.2,4.37e-06]
[1740185483865,3.83566531,2683.3,2683.2,4.37e-06]
[1740185484699,0.10891531,2683.3,2683.2,4.37e-06]
[1740185494728,3.83566531,2683.3,2683.2,4.37e-06]
[1740185495396,0.10891531,2683.3,2683.2,4.37e-06]
[1740185496167,3.83566531,2683.3,2683.2,4.37e-06]
[1740185496362,6.83566531,2683.3,2683.2,4.37e-06]
[1740185496583,9.88756531,2683.3,2683.2,4.37e-06]
[1740185499404,3.10891531,2683.3,2683.2,4.37e-06]
[1740185500193,6.83566531,2683.3,2683.2,4.37e-06]
[1740185500394,3.10891531,2683.3,2683.2,4.37e-06]